bitfinex-derivatives/quotes_BTCF0:USTF0_20241009
["timestamp","ask_amount","ask_price","bid_price","bid_amount"]
[1728484619903,1.580772,61949.0,61948.0,0.00842138]
[1728484620103,1.580772,61949.0,61948.0,0.006]
[1728484620504,0.080772,61949.0,61948.0,0.081773]
[1728484621400,0.080772,61949.0,61948.0,0.080773]
[1728484622103,0.080772,61949.0,61948.0,0.085773]
[1728484622909,0.081772,61949.0,61948.0,0.087773]
[1728484623110,0.0038,61959.0,61948.0,1.328573]
[1728484623407,0.36322143,61969.0,61948.0,1.328573]
[1728484623408,0.00242143,61969.0,61963.0,0.01235]
[1728484623610,0.080731,61980.0,61979.0,0.080731]
[1728484623800,0.3608,61984.0,61974.0,0.28]
[1728484624102,0.1014046,61975.0,61974.0,0.080738]
[1728484625208,0.1014046,61975.0,61970.0,0.28]
[1728484625501,0.0206666,61971.0,61968.0,0.3608]
[1728484625708,0.0206666,61971.0,61970.0,0.080744]
[1728484626598,0.1014096,61971.0,61970.0,0.081744]
[1728484627094,0.1064096,61971.0,61970.0,0.082744]
[1728484627513,0.1064096,61971.0,61970.0,0.002]
[1728484627695,0.1064096,61971.0,61970.0,0.082744]
[1728484630809,0.2964096,61971.0,61970.0,0.002]
[1728484631610,0.3291096,61971.0,61970.0,0.002]
[1728484631808,0.080752,61964.0,61957.0,0.00242048]
[1728484632111,0.08076,61958.0,61957.0,0.00242048]
[1728484632412,1.58076,61958.0,61957.0,0.00242048]
[1728484632602,1.6014266,61958.0,61957.0,0.00242048]
[1728484633110,1.7914266,61958.0,61957.0,0.01857048]
[1728484633807,1.7924266,61958.0,61957.0,0.01857048]
[1728484634213,2.1532266,61958.0,61957.0,0.01857048]
[1728484634403,1.9632266,61958.0,61957.0,0.01857048]
[1728484634910,1.9632266,61958.0,61957.0,0.01615]
[1728484635408,0.080773,61948.0,61947.0,0.441574]
[1728484635608,0.080769,61952.0,61951.0,0.080768]
[1728484635808,0.080769,61952.0,61951.0,0.0601014]
[1728484636006,0.064619,61952.0,61947.0,0.082613]
[1728484636203,0.080773,61948.0,61947.0,0.080773]
[1728484636605,0.081773,61948.0,61947.0,0.098773]
[1728484637207,0.065623,61948.0,61947.0,0.098773]
[1728484637409,0.049473,61948.0,61947.0,0.098773]
[1728484637609,0.001,61948.0,61947.0,0.098773]
[1728484638001,0.081773,61948.0,61947.0,0.009]
[1728484638207,0.081773,61948.0,61947.0,0.014]
[1728484638607,0.081773,61948.0,61947.0,0.086774]
[1728484638909,0.081773,61948.0,61947.0,0.012]
[1728484639316,0.080773,61948.0,61946.0,0.01615]
[1728484639508,0.080774,61947.0,61946.0,0.01615]
[1728484641610,0.080774,61947.0,61946.0,0.01715]
[1728484642018,0.080774,61947.0,61946.0,0.01815]
[1728484642208,0.080774,61947.0,61946.0,0.01715]
[1728484642409,0.080774,61947.0,61946.0,0.01815]
[1728484643715,0.080774,61947.0,61946.0,0.098926]
[1728484644315,0.080774,61947.0,61946.0,0.01815]
[1728484644822,0.080774,61947.0,61946.0,0.01715]
[1728484645014,0.080774,61947.0,61946.0,0.01915]
[1728484645519,0.080774,61947.0,61946.0,0.01815]
[1728484645910,0.441574,61947.0,61946.0,0.01815]
[1728484646618,0.441574,61947.0,61932.0,0.0645]
[1728484646619,0.08079,61935.0,61929.0,0.0113]
[1728484646917,0.08079,61935.0,61927.0,0.3608]
[1728484646918,0.08079,61935.0,61934.0,0.08321283]
[1728484648622,1.50084,61938.0,61934.0,0.00242183]
[1728484648810,0.003,61935.0,61934.0,0.08321283]
[1728484649918,0.080785,61939.0,61938.0,0.080786]
[1728484650128,1.580785,61939.0,61934.0,0.00542183]
[1728484650416,0.08079,61936.0,61935.0,0.08079]
[1728484652118,0.28,61937.0,61935.0,0.08079]
[1728484652119,0.28,61937.0,61935.0,0.004]
[1728484652325,0.080789,61936.0,61935.0,0.004]
[1728484652513,0.080789,61936.0,61935.0,0.08479]
[1728484652717,0.080789,61936.0,61935.0,0.08879]
[1728484652917,1.5,61941.0,61937.0,0.080783]
[1728484653124,1.580783,61941.0,61940.0,0.080783]
[1728484653323,1.580783,61941.0,61935.0,0.008]
[1728484653621,1.580783,61941.0,61937.0,0.080787]
[1728484653622,0.080789,61938.0,61937.0,0.080787]
[1728484654012,0.080789,61936.0,61935.0,0.004]
[1728484654217,0.360789,61936.0,61935.0,0.007]
[1728484654524,0.270789,61936.0,61935.0,0.007]
[1728484654721,0.270789,61936.0,61935.0,0.08479]
[1728484655516,0.080789,61936.0,61935.0,0.08479]
[1728484656425,0.631589,61936.0,61935.0,0.008]
[1728484657623,0.270789,61936.0,61935.0,0.08879]
[1728484657827,1.5,61941.0,61935.0,0.08879]
[1728484658025,0.080786,61939.0,61938.0,0.080783]
[1728484658932,0.080786,61939.0,61935.0,0.01997442]
[1728484658933,0.080789,61936.0,61935.0,0.084789]
[1728484659328,0.080789,61936.0,61935.0,0.080789]
[1728484661230,0.11200164,61936.0,61935.0,0.080789]
[1728484661538,0.11200164,61936.0,61935.0,0.084789]
[1728484661728,0.11200164,61936.0,61935.0,0.088789]
[1728484662437,0.11200257,61936.0,61935.0,0.088789]
[1728484663526,0.11200257,61936.0,61935.0,0.008]
[1728484664133,0.15157484,61936.0,61935.0,0.008]
[1728484664333,0.67078584,61936.0,61928.0,0.0038]
[1728484664542,0.3608,61937.0,61923.0,0.0038]
[1728484664543,0.721598,61929.0,61923.0,0.0038]
[1728484664743,0.360806,61923.0,61920.0,0.080809]
[1728484665042,0.39201957,61923.0,61920.0,0.080809]
[1728484665440,0.39201957,61923.0,61917.0,0.01616]
[1728484665649,0.39201957,61923.0,61921.0,0.080808]
[1728484665842,0.11201957,61923.0,61921.0,0.080808]
[1728484666140,0.11201957,61923.0,61917.0,0.01616]
[1728484666141,0.03121357,61923.0,61917.0,0.01616]
[1728484666335,0.080812,61919.0,61918.0,0.080812]
[1728484667341,0.080806,61923.0,61922.0,0.084804]
[1728484667542,0.3608,61929.0,61925.0,0.0808]
[1728484667746,0.441598,61929.0,61928.0,0.080799]
[1728484669052,0.441598,61929.0,61928.0,0.083799]
[1728484669343,0.441598,61929.0,61928.0,0.003]
[1728484670044,0.441598,61929.0,61928.0,0.083799]
[1728484670646,0.441598,61929.0,61928.0,0.087799]
[1728484670850,0.441598,61929.0,61928.0,0.007]
[1728484671039,0.441598,61929.0,61928.0,0.087799]
[1728484673153,0.3608,61934.0,61928.0,0.087799]
[1728484673454,0.441592,61934.0,61933.0,0.080792]
[1728484673656,0.080792,61934.0,61933.0,0.080792]
[1728484674539,0.082792,61934.0,61933.0,0.080792]
[1728484674747,0.083792,61934.0,61933.0,0.080792]
[1728484675656,0.11500609,61934.0,61933.0,0.080792]
[1728484675954,0.003,61934.0,61933.0,0.441592]
[1728484676348,0.081791,61934.0,61933.0,0.441592]
[1728484676651,0.081791,61934.0,61933.0,0.003]
[1728484676851,0.11300411,61934.0,61933.0,0.003]
[1728484677045,0.11300449,61934.0,61933.0,0.003]
[1728484677356,0.18197809,61934.0,61933.0,0.007]
[1728484677853,0.18197809,61934.0,61933.0,0.01]
[1728484678147,0.18297809,61934.0,61933.0,0.015]
[1728484678550,0.18297809,61934.0,61922.0,0.0038]
[1728484678551,0.080806,61923.0,61922.0,0.0038]
[1728484678743,0.080808,61921.0,61920.0,0.08323139]
[1728484679146,0.080808,61921.0,61920.0,0.080809]
[1728484679543,0.360808,61921.0,61920.0,0.080809]
[1728484679855,0.360808,61921.0,61917.0,0.0312]
[1728484679856,0.080812,61918.0,61917.0,0.112013]
[1728484680254,0.080812,61918.0,61914.0,0.3608]
[1728484680447,0.080812,61918.0,61910.0,0.0644]
[1728484680448,0.080819,61913.0,61910.0,0.0644]
[1728484680652,0.080819,61913.0,61912.0,0.08082]
[1728484680952,0.3608,61914.0,61902.0,0.3608]
[1728484681153,0.344672,61903.0,61902.0,0.3608]
[1728484681349,1.5,61911.0,61899.0,0.01398003]
[1728484681653,0.080827,61907.0,61906.0,0.080827]
[1728484683956,0.080833,61902.0,61901.0,0.01616]
[1728484684150,0.360833,61902.0,61901.0,0.01616]
[1728484684451,0.080843,61894.0,61893.0,0.00622333]
[1728484684650,0.080843,61894.0,61885.0,0.0621]
[1728484684651,0.080851,61888.0,61887.0,0.01617]
[1728484685049,0.080851,61888.0,61887.0,0.097023]
[1728484685554,0.080851,61888.0,61887.0,0.01617]
[1728484686249,0.081851,61888.0,61887.0,0.02117]
[1728484686861,0.080851,61888.0,61887.0,0.01617]
[1728484687053,0.001,61888.0,61887.0,0.02117]
[1728484687258,0.081851,61888.0,61887.0,0.02117]
[1728484687751,0.081851,61888.0,61887.0,0.112023]
[1728484687752,0.082851,61888.0,61887.0,0.112023]
[1728484688345,0.081851,61888.0,61887.0,0.105023]
[1728484688552,0.080851,61888.0,61887.0,0.100023]
[1728484688846,1.87336425,61894.0,61887.0,0.01717]
[1728484688847,1.86164,61894.0,61887.0,0.01717]
[1728484689148,0.360851,61888.0,61887.0,0.02017]
[1728484689958,0.360851,61888.0,61887.0,0.02117]
[1728484693758,0.3608,61889.0,61888.0,0.080851]
[1728484693967,0.00084,61894.0,61893.0,0.080845]
[1728484694150,0.3608,61897.0,61890.0,0.080849]
[1728484694463,0.28,61899.0,61889.0,0.0333]
[1728484694464,0.080842,61895.0,61889.0,0.0333]
[1728484695151,0.080842,61895.0,61894.0,0.080843]
[1728484695763,0.085842,61895.0,61894.0,0.080843]
[1728484697365,0.005,61895.0,61894.0,0.080843]
[1728484697665,0.08084,61897.0,61896.0,0.080841]
[1728484697964,0.36322406,61901.0,61900.0,0.080836]
[1728484698666,0.00242406,61901.0,61900.0,0.080836]
[1728484700564,0.00242406,61901.0,61900.0,0.005]
[1728484700565,0.08325806,61901.0,61900.0,0.005]
[1728484701164,0.08325806,61901.0,61900.0,0.008]
[1728484701867,0.08325806,61901.0,61900.0,0.005]
[1728484702058,0.08325806,61901.0,61900.0,0.009]
[1728484703454,0.08325806,61901.0,61900.0,0.089836]
[1728484704366,0.00242406,61901.0,61900.0,0.089836]
[1728484705156,0.00242406,61901.0,61900.0,0.369836]
[1728484705366,0.3608,61908.0,61907.0,0.080826]
[1728484705870,0.441625,61908.0,61907.0,0.080826]
[1728484706565,0.443625,61908.0,61907.0,0.080826]
[1728484706770,0.082825,61908.0,61907.0,0.080826]
[1728484707374,0.080833,61902.0,61901.0,0.01617]
[1728484708967,0.080833,61902.0,61901.0,0.01917]
[1728484709774,0.080833,61902.0,61901.0,0.02317]
[1728484710875,0.080833,61902.0,61901.0,0.104004]
[1728484711077,0.080833,61902.0,61901.0,0.02317]
[1728484712277,0.080833,61902.0,61901.0,0.104004]
[1728484712678,1.580833,61902.0,61901.0,0.104004]
[1728484716780,1.580833,61902.0,61901.0,0.02317]
[1728484717175,1.611933,61902.0,61901.0,0.02317]
[1728484717683,0.080847,61891.0,61890.0,0.084649]
[1728484717877,0.080847,61891.0,61890.0,0.080849]
[1728484718072,0.080855,61888.0,61884.0,0.39284]
[1728484718287,0.080855,61888.0,61887.0,0.080852]
[1728484719878,0.080854,61886.0,61885.0,0.01617]
[1728484720085,0.360854,61886.0,61885.0,0.01617]
[1728484720479,0.270854,61886.0,61885.0,0.01617]
[1728484721075,0.270854,61886.0,61876.0,0.0038]
[1728484721076,0.080866,61877.0,61876.0,0.0038]
[1728484721276,0.080866,61877.0,61873.0,0.08087]
[1728484721277,0.08087,61874.0,61873.0,0.08087]
[1728484721488,1.5,61880.0,61869.0,0.04830308]
[1728484721683,0.270866,61878.0,61877.0,0.080864]
[1728484721985,1.5,61880.0,61870.0,0.12917708]
[1728484721986,1.581702,61880.0,61879.0,0.080863]
[1728484722181,1.5,61880.0,61879.0,0.080863]
[1728484722487,0.082852,61888.0,61887.0,0.080853]
[1728484722692,0.081852,61888.0,61887.0,0.080853]
[1728484723101,0.080852,61888.0,61887.0,0.080853]
[1728484723276,0.080852,61888.0,61880.0,0.080862]
[1728484723277,0.5508,61889.0,61879.0,0.36756]
[1728484723479,0.270857,61885.0,61884.0,0.080856]
[1728484724080,0.082852,61888.0,61887.0,0.091853]
[1728484724284,1.582852,61888.0,61887.0,0.091853]
[1728484724490,1.771852,61888.0,61887.0,0.080853]
[1728484724683,1.771852,61888.0,61877.0,0.04830308]
[1728484724885,0.19,61880.0,61877.0,0.3608]
[1728484725082,0.270862,61880.0,61879.0,0.080863]
[1728484725788,0.270862,61880.0,61879.0,0.097033]
[1728484727192,0.270862,61880.0,61879.0,0.102033]
[1728484729891,0.080862,61880.0,61879.0,0.102033]
[1728484730087,0.19,61883.0,61879.0,0.102033]
[1728484730294,0.080859,61882.0,61881.0,0.080859]
[1728484731088,0.080859,61882.0,61879.0,0.02117]
[1728484731089,0.19,61883.0,61879.0,0.02117]
[1728484731288,0.19,61883.0,61882.0,0.080859]
[1728484731289,0.270858,61883.0,61882.0,0.080859]
[1728484733684,0.271858,61883.0,61882.0,0.080859]
[1728484734900,0.080862,61880.0,61879.0,0.097032]
[1728484736298,0.001,61883.0,61882.0,0.080859]
[1728484736501,1.5,61888.0,61882.0,0.19]
[1728484736795,0.080855,61885.0,61884.0,0.080854]
[1728484737102,1.5,61888.0,61887.0,0.080853]
[1728484737103,1.581852,61888.0,61887.0,0.080853]
[1728484737298,1.580852,61888.0,61887.0,0.080853]
[1728484738089,1.61208931,61888.0,61887.0,0.080853]
[1728484738490,1.580852,61888.0,61887.0,0.080853]
[1728484738686,0.080856,61885.0,61884.0,0.080856]
[1728484738895,0.080856,61885.0,61882.0,0.080858]
[1728484738896,0.080858,61883.0,61882.0,0.080858]
[1728484739997,0.080862,61881.0,61880.0,0.080861]
[1728484740302,0.270862,61881.0,61880.0,0.080861]
[1728484741099,0.270862,61881.0,61880.0,0.082861]
[1728484741696,0.270862,61881.0,61880.0,0.002]
[1728484742199,0.270862,61881.0,61880.0,0.082862]
[1728484742508,0.080862,61881.0,61880.0,0.083862]
[1728484742903,0.080862,61881.0,61880.0,0.003]
[1728484743311,0.080862,61881.0,61880.0,0.083862]
[1728484743500,0.080862,61881.0,61880.0,0.003]
[1728484744908,0.080862,61881.0,61880.0,0.083862]
[1728484745397,0.080862,61881.0,61880.0,0.16336508]
[1728484745801,0.3608,61885.0,61880.0,0.0342]
[1728484746096,1.50084,61888.0,61882.0,0.19]
[1728484746295,0.080852,61888.0,61887.0,0.080853]
[1728484746495,0.080859,61884.0,61883.0,0.080857]
[1728484746810,0.080859,61882.0,61881.0,0.04830308]
[1728484747106,0.080859,61884.0,61880.0,0.446421]
[1728484747107,0.08086,61881.0,61880.0,0.446421]
[1728484747313,0.27086,61881.0,61880.0,0.442661]
[1728484748102,0.27086,61881.0,61880.0,0.3618]
[1728484749108,0.27086,61881.0,61880.0,0.3608]
[1728484749906,0.080858,61884.0,61880.0,0.3618]
[1728484750206,0.3608,61886.0,61885.0,0.080855]
[1728484750398,0.3608,61886.0,61885.0,0.270855]
[1728484750598,0.441648,61891.0,61885.0,0.270855]
[1728484750599,0.08085,61889.0,61885.0,0.270855]
[1728484750815,0.03123693,61888.0,61887.0,0.080853]
[1728484751908,0.11208793,61888.0,61887.0,0.080853]
[1728484752912,0.11208793,61888.0,61887.0,0.082853]
[1728484752913,0.11308793,61888.0,61887.0,0.082853]
[1728484753315,0.082851,61888.0,61887.0,0.093853]
[1728484753812,0.11408693,61888.0,61887.0,0.093853]
[1728484754005,0.082851,61888.0,61887.0,0.093853]
[1728484756708,0.002,61888.0,61887.0,0.093853]
[1728484757305,0.082851,61888.0,61887.0,0.093853]
[1728484759311,0.082851,61888.0,61887.0,0.013]
[1728484760211,0.082851,61888.0,61887.0,0.093853]
[1728484765309,0.002,61888.0,61887.0,0.093853]
[1728484767617,0.082851,61888.0,61887.0,0.093853]
[1728484768019,0.002,61888.0,61887.0,0.093853]
[1728484770807,0.002,61888.0,61887.0,0.283853]
[1728484771213,0.002,61888.0,61887.0,1.368613]
[1728484771514,0.08084,61897.0,61896.0,0.080839]
[1728484771718,0.11207321,61897.0,61896.0,0.080839]
[1728484771912,0.03123321,61897.0,61896.0,0.080839]
[1728484772117,0.080835,61901.0,61895.0,0.3608]
[1728484772318,0.080839,61898.0,61897.0,0.080837]
[1728484773214,0.080839,61897.0,61896.0,0.003]
[1728484773416,0.270839,61897.0,61896.0,0.003]
[1728484773810,0.270839,61897.0,61896.0,0.001]
[1728484774225,0.270839,61897.0,61893.0,0.01617]
[1728484774226,0.080843,61894.0,61893.0,0.01617]
[1728484774422,0.080803,61894.0,61893.0,0.01617]
[1728484774819,0.113403,61894.0,61893.0,0.01617]
[1728484775421,0.144403,61894.0,61893.0,0.01617]
[1728484776025,1.644403,61894.0,61893.0,0.02117]
[1728484776613,0.080855,61885.0,61884.0,0.080856]
[1728484776819,0.270855,61885.0,61884.0,0.080856]
[1728484777622,0.080846,61893.0,61892.0,0.080845]
[1728484777823,0.3608,61895.0,61894.0,0.080843]
[1728484778025,0.00242402,61898.0,61897.0,0.080839]
[1728484778026,0.08326302,61898.0,61897.0,0.080839]
[1728484778224,0.27326302,61898.0,61897.0,0.080839]
[1728484779823,0.00242402,61898.0,61897.0,0.081839]
[1728484780327,0.00242402,61898.0,61897.0,0.083839]
[1728484780926,0.00088,61904.0,61903.0,0.080832]
[1728484781130,0.08082,61913.0,61912.0,0.080819]
[1728484781421,1.58082,61913.0,61912.0,0.080819]
[1728484781631,1.5,61913.0,61912.0,0.080819]
[1728484781824,0.441616,61915.0,61914.0,0.080817]
[1728484782328,1.941616,61915.0,61914.0,0.080817]
[1728484783426,1.945616,61915.0,61914.0,0.080817]
[1728484783923,1.8688,61915.0,61914.0,0.080817]
[1728484784518,1.508,61915.0,61914.0,0.080817]
[1728484784730,0.008,61915.0,61914.0,0.178617]
[1728484785121,0.00242324,61916.0,61915.0,0.00817]
[1728484785422,0.00242324,61916.0,61915.0,0.088986]
[1728484785728,0.27081,61920.0,61919.0,0.080808]
[1728484786815,0.080815,61917.0,61915.0,0.00817]
[1728484787022,0.270815,61916.0,61915.0,0.00817]
[1728484787521,0.275815,61916.0,61915.0,0.00917]
[1728484788232,0.30703903,61916.0,61915.0,0.00917]
[1728484788623,0.30703903,61916.0,61915.0,0.089986]
[1728484788820,0.31103903,61916.0,61915.0,0.089986]
[1728484789433,0.31099903,61916.0,61915.0,0.089986]
[1728484790027,0.31099903,61916.0,61915.0,0.00917]
[1728484795234,0.279775,61916.0,61915.0,0.00917]
[1728484796732,1.779775,61916.0,61915.0,0.00917]
[1728484797128,0.080828,61906.0,61905.0,0.0038]
[1728484797324,0.080828,61906.0,61902.0,0.00242298]
[1728484797325,0.080832,61903.0,61902.0,0.00242298]
[1728484797935,1.580832,61903.0,61902.0,0.00242298]
[1728484798643,1.580832,61903.0,61891.0,0.146347]
[1728484798644,0.080846,61892.0,61891.0,0.0038]
[1728484798826,0.080846,61892.0,61889.0,0.01617]
[1728484799027,0.19,61890.0,61889.0,0.01617]
[1728484799731,0.270849,61890.0,61889.0,0.01617]
[1728484800039,0.270849,61890.0,61889.0,0.10302]
[1728484800435,0.270849,61890.0,61889.0,0.02217]
[1728484800638,0.080849,61890.0,61889.0,0.02217]
[1728484800825,0.001,61892.0,61891.0,0.080847]
[1728484801025,0.081846,61892.0,61891.0,0.080847]
[1728484801236,0.080849,61890.0,61889.0,0.02217]
[1728484801548,0.080849,61890.0,61889.0,0.02117]
[1728484801549,0.271849,61890.0,61889.0,0.02117]
[1728484801835,0.271849,61890.0,61876.0,0.3652239]
[1728484801836,0.08086,61881.0,61876.0,0.0024239]
[1728484802030,0.080864,61878.0,61877.0,0.01617]
[1728484802232,0.270864,61878.0,61877.0,0.01617]
[1728484803632,0.270864,61878.0,61860.0,0.111688]
[1728484803633,1.355704,61878.0,61867.0,0.0119274]
[1728484803839,0.19,61868.0,61865.0,0.080881]
[1728484804235,0.080883,61864.0,61860.0,0.144387]
[1728484804436,0.19,61864.0,61860.0,0.0635]
[1728484804738,0.080885,61863.0,61860.0,0.06334]
[1728484805044,0.270875,61870.0,61860.0,0.07544127]
[1728484805235,0.080871,61874.0,61867.0,0.19]
[1728484805429,0.08088,61866.0,61865.0,0.01617]
[1728484805640,0.27088,61866.0,61865.0,0.01617]
[1728484808343,0.27088,61866.0,61865.0,0.02017]
[1728484808944,0.27088,61866.0,61865.0,0.101051]
[1728484809145,0.08088,61866.0,61865.0,0.101051]
[1728484810144,0.19,61869.0,61865.0,0.02017]
[1728484810339,0.270876,61869.0,61865.0,0.02017]
[1728484810540,0.270876,61869.0,61868.0,0.080877]
[1728484810741,0.3608,61874.0,61865.0,0.02017]
[1728484810742,0.080874,61871.0,61865.0,0.02017]
[1728484810936,0.19,61873.0,61869.0,0.080875]
[1728484810937,0.080876,61870.0,61869.0,0.080875]
[1728484811751,0.19,61873.0,61871.0,0.080873]
[1728484812046,0.3914,61879.0,61877.0,0.080866]
[1728484812047,1.581705,61878.0,61877.0,0.080866]
[1728484812345,1.580865,61878.0,61877.0,0.080866]
[1728484812551,0.080865,61878.0,61877.0,0.080866]
[1728484812741,0.080868,61875.0,61873.0,0.08087]
[1728484812943,0.3608,61879.0,61873.0,0.08087]
[1728484812944,0.27087,61874.0,61873.0,0.08087]
[1728484814145,0.27087,61874.0,61870.0,0.0637]
[1728484814346,0.080873,61872.0,61870.0,0.144575]
[1728484814551,0.080873,61872.0,61871.0,0.080873]
[1728484815053,0.3608,61879.0,61870.0,0.0637]
[1728484815054,0.080868,61876.0,61870.0,0.0637]
[1728484815354,0.080868,61876.0,61875.0,0.080868]
[1728484815651,0.19,61878.0,61870.0,0.08279169]
[1728484815840,0.08087,61874.0,61872.0,0.080872]
[1728484816155,0.08087,61874.0,61870.0,0.08279169]
[1728484816156,0.08087,61874.0,61873.0,0.080871]
[1728484816651,0.27087,61874.0,61873.0,0.080871]
[1728484816951,0.27087,61874.0,61870.0,0.07579169]
[1728484816952,0.080873,61871.0,61870.0,0.07579169]
[1728484817338,0.080873,61871.0,61870.0,0.15666669]
[1728484818259,0.084873,61871.0,61870.0,0.15666669]
[1728484820348,0.004,61871.0,61870.0,0.15666669]
[1728484821455,0.274873,61871.0,61870.0,0.01209169]
[1728484821749,0.080877,61868.0,61867.0,0.080878]
[1728484821950,0.04041116,61868.0,61867.0,0.080878]
[1728484823451,0.272873,61871.0,61866.0,0.3608]
[1728484823452,0.080879,61867.0,61866.0,0.3608]
[1728484823757,0.08088,61866.0,61865.0,0.01617]
[1728484823957,0.44168,61866.0,61865.0,0.01617]
[1728484825258,0.44168,61866.0,61865.0,0.02017]
[1728484827246,0.08088,61866.0,61865.0,0.02017]
[1728484827661,0.44168,61866.0,61865.0,0.02017]
[1728484828161,0.08088,61866.0,61865.0,0.02017]
[1728484829149,0.441673,61871.0,61870.0,0.080875]
[1728484829553,0.3608,61871.0,61870.0,0.080875]
[1728484830151,0.080871,61873.0,61870.0,0.080875]
[1728484830358,0.19,61875.0,61874.0,0.08087]
[1728484830756,0.080872,61872.0,61871.0,0.111973]
[1728484830949,0.080872,61872.0,61868.0,0.080877]
[1728484831149,0.270876,61869.0,61868.0,0.080877]
[1728484832464,0.270876,61869.0,61868.0,0.14546779]
[1728484832655,0.270876,61869.0,61868.0,0.080877]
[1728484832851,0.19,61869.0,61868.0,0.080877]
[1728484833168,0.441672,61872.0,61871.0,0.080873]
[1728484833169,0.270872,61872.0,61871.0,0.080873]
[1728484833375,0.270872,61872.0,61871.0,0.14548996]
[1728484833556,0.270872,61872.0,61871.0,0.06461696]
[1728484833863,0.270872,61872.0,61871.0,0.0484646]
[1728484834662,0.276872,61872.0,61871.0,0.0484646]
[1728484835161,0.080873,61871.0,61870.0,0.14549196]
[1728484835652,0.080873,61871.0,61867.0,0.092733]
[1728484835858,0.270877,61868.0,61867.0,0.080878]
[1728484836254,0.270877,61868.0,61867.0,0.14550218]
[1728484836761,0.270877,61868.0,61867.0,0.14550304]
[1728484837660,0.270877,61868.0,61867.0,0.082878]
[1728484840064,0.19,61868.0,61867.0,0.082878]
[1728484840458,0.19,61868.0,61867.0,0.115678]
[1728484842464,0.19,61868.0,61867.0,0.16415261]
[1728484843262,0.270877,61868.0,61867.0,0.115678]
[1728484844479,0.270877,61868.0,61867.0,0.082878]
[1728484844774,0.270877,61868.0,61853.0,0.08048998]
[1728484844775,0.080889,61859.0,61853.0,0.08048998]
[1728484845070,0.080889,61859.0,61846.0,0.10971959]
[1728484845071,0.080905,61850.0,61849.0,0.080901]
[1728484845271,0.080905,61850.0,61845.0,0.3608]
[1728484845272,0.080906,61846.0,61845.0,0.3608]
[1728484845478,0.270906,61846.0,61845.0,0.3608]
[1728484845665,0.270906,61846.0,61845.0,0.441707]
[1728484845861,0.270906,61846.0,61845.0,0.080907]
[1728484846772,0.270906,61846.0,61845.0,0.09269237]
[1728484846967,0.19,61846.0,61845.0,0.09269237]
[1728484847273,0.191,61846.0,61845.0,0.09269237]
[1728484847778,0.002,61846.0,61845.0,0.10269237]
[1728484849575,0.002,61846.0,61845.0,0.10257237]
[1728484852964,0.192,61846.0,61845.0,0.10257237]
[1728484853164,0.633706,61846.0,61845.0,0.02618]
[1728484853769,0.64540842,61846.0,61845.0,0.02618]
[1728484854665,2.14540842,61846.0,61845.0,0.02618]
[1728484854980,2.14540842,61846.0,61845.0,0.02318]
[1728484858571,2.14540842,61846.0,61845.0,0.104087]
[1728484858870,0.5528,61846.0,61845.0,0.104087]
[1728484859179,0.002,61846.0,61845.0,0.104087]
[1728484859874,0.28248557,61851.0,61845.0,0.104087]
[1728484859875,0.3608,61854.0,61853.0,0.080897]
[1728484861081,0.19,61854.0,61853.0,0.080897]
[1728484861380,0.270897,61854.0,61853.0,0.080897]
[1728484861776,0.19,61857.0,61853.0,0.080897]
[1728484862076,0.00088,61858.0,61857.0,0.080892]
[1728484862380,0.080892,61857.0,61846.0,0.0038]
[1728484862576,0.270904,61848.0,61847.0,0.080905]
[1728484864373,0.271904,61848.0,61847.0,0.086905]
[1728484865077,0.272904,61848.0,61847.0,0.007]
[1728484865471,0.271904,61848.0,61847.0,0.001]
[1728484865679,0.272904,61848.0,61847.0,0.006]
[1728484865981,0.271904,61848.0,61847.0,0.005]
[1728484866281,0.272904,61848.0,61847.0,0.006]
[1728484866876,0.271904,61848.0,61847.0,0.005]
[1728484867077,0.272904,61848.0,61847.0,0.006]
[1728484872474,0.272904,61848.0,61826.0,0.0131]
[1728484872475,0.48508,61847.0,61826.0,0.09369028]
[1728484872674,0.48508,61847.0,61826.0,0.08059028]
[1728484872675,0.080931,61827.0,61826.0,0.08059028]
[1728484872873,0.080933,61826.0,61815.0,0.3608]
[1728484873080,0.080945,61817.0,61816.0,0.080945]
[1728484873386,0.080945,61817.0,61809.0,0.04649]
[1728484873577,0.19,61810.0,61809.0,0.04649]
[1728484873775,0.5508,61811.0,61810.0,0.080953]
[1728484874376,0.3608,61819.0,61810.0,0.080953]
[1728484875283,0.001,61811.0,61810.0,0.007]
[1728484875487,0.3608,61819.0,61818.0,0.080943]
[1728484875882,0.3608,61826.0,61825.0,0.080934]
[1728484876482,0.3608,61826.0,61819.0,0.0316]
[1728484876483,0.6408,61832.0,61831.0,0.080926]
[1728484877091,0.28,61832.0,61831.0,0.080926]
[1728484877482,0.3608,61834.0,61826.0,0.080932]
[1728484877681,0.3608,61834.0,61833.0,0.080923]
[1728484879486,0.3608,61834.0,61833.0,0.080883]
[1728484879786,0.3618,61834.0,61833.0,0.080883]
[1728484880378,0.3638,61834.0,61833.0,0.080883]
[1728484880592,0.3638,61834.0,61833.0,0.113183]
[1728484881290,0.003,61834.0,61833.0,0.113183]
[1728484881884,0.3608,61857.0,61839.0,0.01619]
[1728484882085,0.080894,61856.0,61855.0,0.080893]
[1728484882285,0.080894,61856.0,61843.0,0.08091]
[1728484882286,0.080899,61852.0,61842.0,0.3608]
[1728484882483,0.3608,61857.0,61849.0,0.28]
[1728484882683,0.080894,61855.0,61854.0,0.080894]